Cogmind - Beta 14 @@@ ROGUE MODE // 2024.09.03 @ 16:45:53 Player: Conlarando Result: Destroyed by G-47 Trooper with Particle Gun Performance ------------- Evolutions (0) 0 Regions Visited (2) 400 Robots Destroyed (33) 165 Value Destroyed (618) 618 Prototype IDs (0) 0 Alien Tech Used (0) 0 Bonus (0) 0 TOTAL SCORE: 1183 Bonus ------- None Cogmind --------- Core Integrity 0/250 Matter 244/300 Energy 100/100 System Corruption 0% Temperature Cool (9) Movement Walking (400) Ox4 Location -10/Mines Parts ------- > --- POWER (1) -------- (None) > --- PROPULSION (2) --- Aluminum Leg Aluminum Leg > --- UTILITY (2) ------ Improved Heat Sink Huge Storage Unit > --- WEAPON (2) ------- Light Assault Rifle Light Assault Rifle > --- INVENTORY (25) --- Light Ion Engine Aluminum Leg Wheel Flight Unit Flight Unit Flight Unit Flight Unit Flight Unit Flight Unit Heat Sink Small Storage Unit Medium Storage Unit Large Storage Unit Sensor Array Signal Interpreter ECM Suite ECM Suite Propulsion Shielding Propulsion Shielding Utility Shielding Utility Shielding Hacking Suite Peak State ------------ > --- POWER ------------ Ion Engine > --- PROPULSION ------- Aluminum Leg Wheel > --- UTILITY ---------- Improved Heat Sink Huge Storage Unit > --- WEAPON ----------- Light Assault Rifle Light Assault Rifle > --- INVENTORY -------- Light Ion Engine Flight Unit Flight Unit Flight Unit Flight Unit Flight Unit Flight Unit Small Storage Unit Medium Storage Unit Large Storage Unit Sensor Array Signal Interpreter ECM Suite ECM Suite Propulsion Shielding Propulsion Shielding Utility Shielding Utility Shielding Hacking Suite Light Assault Rifle Light Assault Rifle Grenade Launcher [Rating: 11] Favorites ----------- Power Light Ion Engine Engine Light Ion Engine Propulsion Light Treads Treads Light Treads Leg Aluminum Leg Wheel Wheel Utility Huge Storage Unit Device Improved Heat Sink Storage Huge Storage Unit Weapon Light Assault Rifle Energy Gun Medium Laser Ballistic Gun Light Assault Rifle Launcher Grenade Launcher Build | -11 -10 -10 ------- Run | Yrd Mat Min Slots Evolved . | . . . Power . | . . . Propulsion . | . . . Utility . | . . . Weapon . | . . . Parts Attached 37 | 6 20 11 Power 5 | 1 2 2 Engine 5 | 1 2 2 Core . | . . . Reactor . | . . . Propulsion 9 | 2 4 3 Treads 5 | 2 3 . Leg 2 | . . 2 Wheel 2 | . 1 1 Hover . | . . . Flight . | . . . Utility 8 | 1 6 1 Device 1 | . . 1 Storage 7 | 1 6 . Processor . | . . . Hackware . | . . . Protection . | . . . Artifact . | . . . Weapon 15 | 2 8 5 Energy Gun 3 | 2 1 . Energy Cannon . | . . . Ballistic Gun 9 | . 5 4 Ballistic Cannon . | . . . Launcher 3 | . 2 1 Special Weapon . | . . . Impact Weapon . | . . . Slashing Weapon . | . . . Piercing Weapon . | . . . Special Melee Weapon . | . . . Unidentified Prototypes . | . . . Parts Lost 11 | . 2 9 Power 4 | . 1 3 Propulsion 3 | . 1 2 Utility . | . . . Weapon 4 | . . 4 Highest Loss Streak 5 | . 1 5 To Critical Strikes . | . . . Average Slot Usage (%) 88 | . 85 96 Engine 13 | . 13 13 Treads 19 | . 24 1 Leg 4 | . . 24 Wheel 2 | . 2 1 Device 2 | . . 12 Storage 16 | . 17 14 Ballistic Gun 26 | . 26 27 Peak Build Rating 11 | 6 8 11 Average Rating 8 | 4 7 10 On Entrance 4 | . 6 8 Naked Turns . | . . . Heaviest Build 92 | 11 92 88 Greatest Support 40 | 40 40 40 Greatest Overweight (x) 9 | . 9 8 Average Overweight (x) 2 | . 2 4 Largest Inventory Capacity 25 | 8 25 25 Average Capacity 23 | 7 23 25 Most Carried 25 | 3 25 25 Average Carried 20 | 1 19 24 Final Capacity 25 | 8 25 25 Final Carried 25 | 3 25 22 Class Distribution -------------------- 81% | Mutant 18% | Scavenger-Mutant Dominant Class ---------------- Mutant | -10/Materials Scavenger-Mutant | -10/Mines Resources | -11 -10 -10 ----------- Run | Yrd Mat Min Matter Collected 768 | 199 468 101 Remotely . | . . . Salvage Created 1174 | . 798 376 Parts 69 | . 52 17 Haulers Intercepted 2 | . 2 . Recyclers Shooed 8 | . 7 1 Parts Field Recycled . | . . . Retrieved Matter . | . . . Parts Self-Destructed . | . . . Prevented . | . . . Kills | -11 -10 -10 ------- Run | Yrd Mat Min Combat Hostiles Destroyed 20 | . 13 7 Guns 14 | . 7 7 AOE 6 | . 6 . Classes Destroyed 7 | . 7 . Worker 1 | . 1 . Hauler 2 | . 2 . Recycler 5 | . 4 1 Operator 2 | . 2 . Watcher 3 | . 3 . Swarmer 9 | . 9 . Grunt 11 | . 4 7 Best Kill Streak 4 | . 4 3 Combat Bots Only 4 | . 4 3 Max Kills in Single Turn 3 | . 3 1 Gunslinging . | . . . Exploded 3 | . 3 . Melee . | . . . Uniques/NPCs Destroyed . | . . . Combat | -11 -10 -10 -------- Run | Yrd Mat Min Hostile Shots Fired 170 | . 90 80 Missed 50 | . 29 21 Damage Taken 1389 | . 547 842 Core 250 | . 94 156 Absorbed by Shields . | . . . Core Remaining (%) 100 | 100 . . Volleys Fired 130 | . 86 44 Largest 2 | . 2 2 Hottest 90 | . 90 50 Shots Fired 232 | . 149 83 Gun 227 | . 145 82 Cannon . | . . . Launcher 5 | . 4 1 Special . | . . . Kinetic 202 | . 120 82 Thermal 25 | . 25 . Explosive 5 | . 4 1 Electromagnetic . | . . . Robot Hit Streak 8 | . 8 8 Robot Miss Streak 4 | . 3 4 Penetration Max . | . . . Secondary Targets 3 | . 1 2 Max Gunslinging Chain 1 | . 1 1 Shots Hit Robots 146 | . 94 52 Core Hits 68 | . 48 20 Critical Kills 2 | . 1 1 Critical Parts Destroyed . | . . . Critical Strikes 2 | . 1 1 Destroy 2 | . 1 1 Melee Attacks . | . . . Impact . | . . . Slashing . | . . . Piercing . | . . . Sneak Attacks . | . . . Combat Hostiles . | . . . Follow-up Attacks . | . . . Damage Inflicted 1593 | . 1113 480 Guns 1290 | . 880 410 Cannons . | . . . Explosions 303 | . 233 70 Melee . | . . . Ramming . | . . . Kinetic 1076 | . 666 410 Thermal 214 | . 214 . Explosive 303 | . 233 70 Electromagnetic . | . . . Impact . | . . . Slashing . | . . . Piercing . | . . . Highest Corruption . | . . . Average Corruption . | . . . Corruption Purged . | . . . Corruption Blocked . | . . . Overload Shots . | . . . Overflow Damage 9 | . . 9 Projectiles . | . . . Explosions 9 | . . 9 Melee . | . . . Knockbacks . | . . . Impact . | . . . Kinetic . | . . . Secondary . | . . . Self-Inflicted Damage 30 | . . 30 Shots 1 | . . 1 Rammed . | . . . Targets Rammed . | . . . Kicked . | . . . Crushed . | . . . Highest Temperature 42 | . 30 42 Average Temperature 12 | . 9 14 Received Heat Transfer 678 | . 96 582 Siege Activations . | . . . Robots Corrupted . | . . . Combat Hostiles . | . . . Parts Fried . | . . . Impact Corruptions . | . . . Robots Melted . | . . . Combat Hostiles . | . . . Parts Melted 2 | . 2 . Heat Transferred 629 | . 629 . Parts Sabotaged . | . . . Parts Stolen . | . . . Parts Stripped . | . . . Power Chain Reactions . | . . . Alert | -11 -10 -10 ------- Run | Yrd Mat Min Peak Influence 188 | . 188 85 Initial 15 | . . 15 Average 68 | . 75 52 Maximum Alert Level . | . . . Low Security (%) 100 | 100 100 100 Level 1 . | . . . Level 2 . | . . . Level 3 . | . . . Level 4 . | . . . Level 5 . | . . . High Security . | . . . Max Security . | . . . Squads Dispatched 3 | . 3 . Investigation 1 | . 1 . Extermination . | . . . Reinforcement 2 | . 2 . Assault . | . . . Garrison . | . . . Intercept . | . . . Searches Triggered . | . . . Construction Impeded . | . . . Haulers Reinforced . | . . . Active Scanning Responses . | . . . Cargo Convoy Interrupts . | . . . Stealth | -11 -10 -10 --------- Run | Yrd Mat Min Distress Signals . | . . . Communications Jammed . | . . . Distress Signals . | . . . Times Spotted 28 | . 20 8 Peak Tracking Total 5 | . 5 3 Tactical Retreats . | . . . Traps | -11 -10 -10 ------- Run | Yrd Mat Min Traps Triggered 3 | . 3 . Indirectly . | . . . Trap Hack Attempts . | . . . Triggered . | . . . Disarmed . | . . . Reprogrammed 6 | . 6 . Reused . | . . . Traps Extracted . | . . . Installed . | . . . Triggered . | . . . Machines | -11 -10 -10 ---------- Run | Yrd Mat Min Machines Disabled . | . . . Max in Single Turn . | . . . Machines Repaired . | . . . Machines Dismantled . | . . . Machines Sabotaged . | . . . Overloaded Fab Kills . | . . . Hacking | -11 -10 -10 --------- Run | Yrd Mat Min Machines Accessed 7 | . 7 . Terminals 5 | . 5 . Fabricators . | . . . Repair Stations . | . . . Recycling Units 2 | . 2 . Scanalyzers . | . . . Garrison Access . | . . . Total Hacks 20 | . 20 . Successful 9 | . 9 . Failed 11 | . 11 . Catastrophic 3 | . 3 . Database Lockouts . | . . . Manual 10 | . 10 . Terminals 13 | . 13 . Fabricators . | . . . Repair Stations . | . . . Recycling Units 7 | . 7 . Scanalyzers . | . . . Garrison Access . | . . . Terminal Hacks 4 | . 4 . Locate Traps 1 | . 1 . Reprogram Traps 1 | . 1 . Zone Layout 2 | . 2 . Fabricator Hacks . | . . . Repair Station Hacks . | . . . Recycling Unit Hacks 5 | . 5 . Report Inventory 2 | . 2 . Retrieve Components 3 | . 3 . Scanalyzer . | . . . Garrison Access Hacks . | . . . Unauthorized Hacks . | . . . Terminals . | . . . Fabricators . | . . . Repair Stations . | . . . Recycling Units . | . . . Scanalyzers . | . . . Garrison Access . | . . . Data Cores Recovered . | . . . Used . | . . . Hacking Detections 6 | . 6 . Full Trace Events 1 | . 1 . Feedback Events . | . . . Feedback Blocked . | . . . Robot Schematics Acquired . | . . . Robots Built . | . . . Authchips . | . . . Time . | . . . Total Robot Build Rating . | . . . Part Schematics Acquired . | . . . Parts Built . | . . . Authchips . | . . . Time . | . . . Total Part Build Rating . | . . . Parts Repaired . | . . . Time . | . . . Parts Recycled . | . . . Recycled Matter . | . . . Retrieved Matter . | . . . Retrieved Components 18 | . 18 . Parts Scanalyzed . | . . . Part Schematics Acquired . | . . . Parts Damaged . | . . . Bothacking | -11 -10 -10 ------------ Run | Yrd Mat Min Used RIF Installer . | . . . Robots Hacked . | . . . Non-combat . | . . . Combat . | . . . Robot Hacks Applied . | . . . Relay Couplers Released . | . . . Fabnet Peak Effective % . | . . . Robots Rewired . | . . . Allies Hacked . | . . . Hacks Repelled . | . . . Allies | -11 -10 -10 -------- Run | Yrd Mat Min Total Allies . | . . . Largest Group . | . . . Highest-Rated Group . | . . . Highest-Rated Ally . | . . . Total Orders . | . . . Ally Attacks . | . . . Total Damage . | . . . Kills . | . . . Allies Corrupted . | . . . Allies Melted . | . . . Intel | -11 -10 -10 ------- Run | Yrd Mat Min Robot Analysis Total . | . . . Derelict Logs Recovered . | . . . Drone Launches . | . . . Drone Recoveries . | . . . Exploration | -11 -10 -10 ------------- Run | Yrd Mat Min Turns Passed 3206 | 85 2482 639 Spaces Moved 968 | 49 793 126 Core 35 | 4 31 . Treads 614 | 45 566 3 Legs 118 | . . 118 Wheels 201 | . 196 5 Hover . | . . . Flight . | . . . Fastest Speed 50 | 50 80 200 Average Speed 280 | 151 270 392 Slowest Speed 680 | 160 320 680 Overloaded Moves . | . . . Propulsion Burnouts . | . . . Robots Hopped . | . . . Cave-ins Triggered . | . . . Exploration Rate (%) 36 | 5 76 29 Regions Visited 2 Branch Regions 1 Pre-discovered Areas 1 | . . 1 Known Exits Taken . | . . . Unknown Exits Taken 2 | 1 1 . Scrap Searched 1 | . . 1 Spaces Dug . | . . . Terrain Destroyed 26 | . 19 7 Melee . | . . . Projectile . | . . . AOE 26 | . 19 7 Terrain Rammed . | . . . Walls Destroyed . | . . . Machines Disabled . | . . . Actions | -11 -10 -10 --------- Run | Yrd Mat Min Total 1272 | 57 1011 204 Wait 82 | . 65 17 Move 966 | 48 792 126 Hop . | . . . Pick Up 40 | 3 34 3 Fast Attach 16 | 6 5 5 Attach 14 | . 8 6 Detach 5 | . 4 1 Swap 7 | . 7 . Drop 12 | . 10 2 Fire 130 | . 86 44 Melee . | . . . Ram . | . . . Kick . | . . . Crush . | . . . Escape Stasis . | . . . Rewire . | . . . Trap . | . . . Miscellaneous . | . . . Route ------- -11/Scrapyard -10/Materials (discovered 3 exits: [*Mat x2] / [*Min]) -10/Mines History --------- Turn | Location | Event 2 | -11/Scrapyard | Met Revision 17 13 | -11/Scrapyard | Discovered new exit (range 16) 86 | -11/Scrapyard | Entered Materials 307 | -10/Materials | Build established: Mutant 846 | -10/Materials | Discovered new exit (range 14) 1371 | -10/Materials | Discovered new exit (range 16) 2280 | -10/Materials | Discovered new exit (range 9) 2568 | -10/Materials | Entered Mines 2585 | -10/Mines | Core integrity fell below 50% 2640 | -10/Mines | Lost 5 parts (2p2n1w) 2922 | -10/Mines | Build established: Scavenger-Mutant 3002 | -10/Mines | Learned location of Storage (-9) 3174 | -10/Mines | Core integrity fell below 20% 3207 | -10/Mines | Destroyed by G-47 Trooper with Particle Gun Last Messages --------------- 03004_ JG-1B3(g): "We scattered so the Unaware couldn't effectively use their advantage in numbers, and I suggest you do the same." 03004_ JG-1B3(g) slips back into the shadows. 03115_ G-34 Mercenary destroyed. 03119_ R-06 Scavenger collects Aluminum Leg. 03167_ Critical hit (Burn: +37). 03177_ Lgt. Assault Rifle destroyed. 03178_ G-47 Trooper destroyed. 03178_ Grenade Launcher destroyed. 03178_ Destroyed Grenade Launcher. 03195_ Lgt. Assault Rifle destroyed. 03197_ R-06 Scavenger collects Aluminum Leg. 03205_ G-34 Mercenary destroyed. 03205_ Switching to secondary target: G-47 Trooper. 03205_ U-05 Engineer builds a Wall. 03205_ Ion Engine destroyed. 03205_ Critical hit (Burn: +37). Map ----- +----------------------------------------------------+ | % #??????????????????????? | | ##### #???????????????????????? | | %#???# #### #########???????????????? | | #???## ##??## ! #???????????????? | | %#????########????# % #???????????????? | | #####???????????## ######### #????????????? | | #?????####??# #??????????????????????????? | | !!! #????## #### ##?????????????????????????? | | ! #????# #?????????????????????????? | | ! #???## #?????????????????????????? | | !! #??## ## # #?????????????????????????? | | #?## ### ## ##?????????????????????????? | | #?# ##?# ######??????????????????????????? | | #?# #??# ##??????????????????????????????? | | ######?## ##??# #??????????????????????????????? | | ????????####???## #??????????????????????????????? | | ????????????????# #??????????????????????????????? | | ????????????????# #??????????????????????????????? | | ????????????????# #??????????????????????????????? | | ????????????????# #??????????????????????????????? | | ??????????????### ###????????????????????????????? | | ?????????????## ##???????????????????????????? | | ?????????????# #???????????????????????????? | | ??????????#### ######??????????????????????? | | ??? g #??????????????????????? | | ??? %#######@#??????????????????????? | | ????############ =#????# r%#?????????????????????? | | ???????????????# #????# ==! ????????????????????? | | ??????????????? ????## #???????????????????? | | ?????????????? """???? ### ##???????????????????? | | ????????????? """???? ??? #????????????????????? | | ???????????? """??? ???##????????????????????? | | ??????????? ????? ??????????????????????????? | | ??????????? ????? ??????????????????????????? | | ?????????? ##?????? ??????????????????????????? | | ????????? #???????# ???????????????????????????? | | ????????? #????????# ???????????????????????????? | | ???????????????????? ????????????????????????????? | | ???????????????????? ????????????????????????????? | | ?????????????????????????????????????????????????? | | ?????????????????????????????????????????????????? | | ?????????????????????????????????????????????????? | | ?????????????????????????????????????????????????? | | ?????????????????????????????????????????????????? | | ?????????????????????????????????????????????????? | | | | | | | | | | | +----------------------------------------------------+ Best States ------------- Heat Dissipation 39 Energy Generation 10 Energy Capacity 250 Matter Stores 357 Matter Capacity 450 Sight Range 16 Terrain Scan Density 10 Evasion (%) 44 Recoil Reduction 2 Item Schematics ----------------- None Robot Schematics ------------------ None Fabricated ------------ Nothing Alien Tech Used ----------------- None Achievements -------------- None Challenges ------------ None Game ------ Seed HardcellWeldingImmobilizer Manual? 0 Play Time 00:24:42 Cumulative 24.8 hours Start 2024.08.30 @ 22:03:43 End 2024.09.03 @ 16:45:53 Sessions 3 Manual Loads 0 Difficulty Rogue Special Mode None Game No. 35 Rogue 35 Adventurer 0 Explorer 0 Win Type - Total 0 Types 0/0/0/0/0/0/0/0/0 Lore% 4 Gallery% 27 Achievement% 26 Wizard Run 0 Options --------- Layout 1 ASCII 0 Keyboard 0 Movement Mouse Keybinds 0 Fullscreen 1 Font 24/Terminus Map View 50x35 Zoom Use 0% Tactical HUD 1 Map Filters NONE Filters NONE Steam 1 RUN: cad292cd-52ac-478e-a4a1-6ab83d0cad67